bitfinex-derivatives/quotes_SOLF0:USTF0_20241021
["timestamp","ask_amount","ask_price","bid_price","bid_amount"]
[1729486915580,2.9219,171.16,171.09,2.9231]
[1729486915778,5.6,171.18,171.06,6.8223]
[1729486915979,5.6,171.18,171.07,2.92457338]
[1729486916170,2.9221,171.15,171.07,2.9234]
[1729486916974,1.2512,171.19,171.08,2.92451872]
[1729486916975,5.6,171.18,171.08,2.92451872]
[1729486917179,5.6,171.18,171.06,6.8223]
[1729486917379,5.6,171.18,171.07,2.92460694]
[1729486917579,2.9223,171.14,171.08,2.92460694]
[1729486917774,5.0,171.06,171.04,0.28806215]
[1729486917972,5.0,171.06,171.0,0.28806215]
[1729486918175,5.0,171.06,171.01,5.26546098]
[1729486918378,5.0,171.06,171.02,5.26546098]
[1729486918581,5.0,171.06,171.03,5.26546098]
[1729486918781,5.0,171.06,171.04,2.34020488]
[1729486918982,5.0,171.06,171.0,3.21266215]
[1729486919181,5.0,171.06,171.01,5.26546301]
[1729486919382,5.0,171.06,171.02,5.26546301]
[1729486919578,5.0,171.06,171.03,2.34020578]
[1729486919780,5.0,171.06,171.04,2.34020578]
[1729486919978,5.0,171.06,171.05,3.80281019]
[1729486920880,5.0,171.06,171.02,2.9242]
[1729486921077,5.0,171.06,171.03,1.46260871]
[1729486921281,5.0,171.06,171.04,1.46260871]
[1729486921479,5.0,171.06,171.01,2.9244]
[1729486921684,5.0,171.06,171.02,2.34029198]
[1729486921881,5.0,171.06,171.03,1.46268249]
[1729486922080,5.0,171.06,171.04,3.80271492]
[1729486922285,5.0,171.06,171.05,1.46268249]
[1729486923386,1.3301,171.1,171.0,2.92506509]
[1729486923587,1.3301,171.1,171.01,6.72764915]
[1729486923784,2.9231,171.09,171.02,3.80258406]
[1729486923986,2.9231,171.09,171.03,1.46253233]
[1729486924181,2.9231,171.09,171.0,5.6]
[1729486924388,1.3301,171.1,171.01,5.2652082]
[1729486924389,2.9234,171.08,171.01,5.2652082]
[1729486924596,2.9234,171.08,171.02,3.80264844]
[1729486924780,2.9234,171.08,171.03,1.46255709]
[1729486924985,2.9234,171.08,171.04,1.46255709]
[1729486925180,2.9234,171.08,171.0,5.6]
[1729486925388,2.9234,171.08,171.01,3.8026467]
[1729486925592,2.9234,171.08,171.02,3.8026467]
[1729486925893,2.9234,171.08,171.03,1.46255642]
[1729486926093,2.9234,171.08,171.04,1.46255642]
[1729486926288,1.3301,171.1,171.0,5.6]
[1729486926496,2.9235,171.07,171.01,3.80273679]
[1729486926787,1.3301,171.1,171.02,1.46259107]
[1729486926986,2.9235,171.07,171.0,5.6]
[1729486927194,5.6,171.09,171.01,1.46269577]
[1729486927385,5.6,171.09,171.02,1.46269577]
[1729486927585,5.6,171.09,170.98,5.62]
[1729486927989,2.9238,171.05,170.99,1.46269986]
[1729486928192,5.6,171.09,171.0,1.46269986]
[1729486928387,5.6,171.09,170.98,5.62]
[1729486928994,5.6,171.09,170.96,7.10601761]
[1729486929194,5.6,171.09,170.97,1.46287688]
[1729486929389,5.6,171.09,170.96,7.10601761]
[1729486929588,5.6,171.09,170.97,1.46291238]
[1729486929793,5.6,171.09,170.96,7.10601761]
[1729486929995,2.9242,171.03,170.97,1.4629057]
[1729486930193,5.6,171.09,170.96,4.18071761]
[1729486930497,23.16,171.09,170.92,2.97860343]
[1729486930699,23.16,171.09,170.93,1.4631066]
[1729486930893,23.16,171.09,170.9,1.46347281]
[1729486931194,23.16,171.09,170.85,1.46388861]
[1729486931393,17.56,171.07,170.78,4.22053605]
[1729486931593,17.56,171.03,170.79,5.09180022]
[1729486931792,17.56,171.01,170.79,1.285]
[1729486931994,2.9257,170.94,170.81,2.9279]
[1729486932192,5.62,170.93,170.77,5.62]
[1729486932405,25.7231,170.92,170.77,5.62]
[1729486932600,5.62,170.91,170.79,2.9282]
[1729486932788,23.18,170.91,170.77,5.62]
[1729486932992,1.3164,170.9,170.77,5.62]
[1729486933402,2.9272,170.85,170.78,2.9284]
[1729486933697,5.62,170.84,170.78,2.9284]
[1729486933899,8.5475,170.84,170.77,2.9286]
[1729486934095,8.5475,170.84,170.74,4.1735778]
[1729486934096,5.62,170.84,170.74,4.1735778]
[1729486934299,5.62,170.84,170.71,5.62]
[1729486934496,5.62,170.84,170.71,8.4839817]
[1729486934700,5.62,170.84,170.67,2.6052]
[1729486935299,5.62,170.84,170.68,2.98988386]
[1729486935497,2.9284,170.79,170.68,2.98988386]
[1729486935800,5.62,170.78,170.67,1.3358]
[1729486935998,5.62,170.77,170.69,2.9299]
[1729486936594,8.5487,170.77,170.68,2.9301]
[1729486936900,8.5487,170.77,170.64,6.9641]
[1729486936901,5.62,170.77,170.64,6.9641]
[1729486937101,8.5486,170.77,170.64,6.9641]
[1729486937599,2.9289,170.75,170.66,2.9304]
[1729486937798,1.3164,170.9,170.64,6.9641]
[1729486937995,5.62,170.89,170.64,6.9641]
[1729486938202,1.3164,170.9,170.64,6.9641]
[1729486938401,5.62,170.89,170.64,6.9641]
[1729486938601,5.62,170.89,170.65,1.07679015]
[1729486938801,2.9274,170.84,170.65,1.07679015]
[1729486939001,5.62,170.83,170.65,1.07679015]
[1729486939198,2.9274,170.84,170.65,1.07679015]
[1729486939401,5.62,170.83,170.65,1.07679015]
[1729486939705,5.62,170.82,170.65,1.07679015]
[1729486940004,5.62,170.81,170.65,1.07679015]
[1729486940404,2.9276,170.83,170.72,2.9293]
[1729486940596,5.62,170.82,170.73,2.86231127]
[1729486941102,1.3164,170.9,170.71,5.62]
[1729486941303,2.9269,170.88,170.77,2.9286]
[1729486942396,5.58,170.89,170.8,2.9281]
[1729486942601,5.58,170.89,170.76,5.58]
[1729486943605,5.58,170.89,170.72,2.606]
[1729486943903,5.58,170.89,170.64,1.3441]
[1729486944111,23.14,170.89,170.65,6.8564]
[1729486945098,1.3164,170.9,170.65,6.8564]
[1729486945303,5.58,170.89,170.65,6.8564]
[1729486946002,17.56,170.88,170.65,6.8564]
[1729486946211,2.9281,170.81,170.73,2.9291]
[1729486946509,8.5081,170.81,170.73,2.9291]
[1729486946907,2.9282,170.8,170.72,2.9294]
[1729486947106,5.58,170.81,170.7,8.54122555]
[1729486947410,8.508,170.81,170.72,2.9293]
[1729486949206,5.58,170.81,170.7,8.54122555]
[1729486949403,5.58,170.81,170.7,11.47082555]
[1729486949604,5.58,170.81,170.7,5.58]
[1729486950008,2.9284,170.79,170.7,11.40500787]
[1729486950309,5.58,170.81,170.7,8.47520787]
[1729486951210,1.33,170.72,170.7,8.47520787]
[1729486951816,1.33,170.72,170.71,2.9296]
[1729486954425,1.33,170.72,170.7,8.47520787]
[1729486956525,4.1566,170.8,170.7,8.47520787]
[1729486956829,4.1566,170.8,170.71,2.9296]
[1729486957228,1.33,170.72,170.71,2.9296]
[1729486959330,5.58,170.84,170.76,2.9286]
[1729486960232,5.58,170.84,170.7,8.47520787]
[1729486961028,5.58,170.84,170.77,2.9285]
[1729486963245,5.58,170.84,170.74,2.9291]
[1729486963538,1.33,170.72,170.7,8.47520787]
[1729486963730,5.58,170.84,170.7,8.47520787]
[1729486963930,2.5806,170.86,170.7,8.47520787]
[1729486964135,2.5806,170.86,170.71,1.07662306]
[1729486964136,8.1606,170.86,170.71,1.07662306]
[1729486964336,8.1606,170.86,170.7,8.47520787]
[1729486964740,8.1606,170.86,170.79,2.9282]
[1729486964930,8.1606,170.86,170.79,5.85833615]
[1729486965236,8.1606,170.86,170.79,2.9282]
[1729486965442,2.5806,170.86,170.79,5.86302203]
[1729486965736,2.5806,170.86,170.79,2.9282]
[1729486966139,2.5806,170.86,170.79,5.91046651]
[1729486966534,2.5806,170.86,170.79,2.9283]
[1729486966940,2.5806,170.86,170.76,5.58]
[1729486967135,5.5077,170.86,170.78,2.9284]
[1729486967932,2.5806,170.86,170.79,2.9281]
[1729486968341,2.5806,170.86,170.76,5.58]
[1729486968943,1.3091,170.92,170.76,5.58]
[1729486968944,5.58,170.89,170.76,5.58]
[1729486969442,1.3306,170.91,170.76,5.58]
[1729486969642,2.5687,170.91,170.77,2.5831]
[1729486969843,2.9267,170.88,170.8,2.9281]
[1729486973043,2.9269,170.87,170.8,2.9281]
[1729486974145,2.5687,170.91,170.79,2.87256596]
[1729486974349,2.9268,170.88,170.81,2.9278]
[1729486974648,2.9268,170.88,170.77,2.5831]
[1729486974649,2.5687,170.91,170.77,2.5831]
[1729486974836,2.5687,170.91,170.76,5.34]
[1729486975348,2.5687,170.91,170.74,5.34]
[1729486975542,2.9272,170.85,170.78,2.9283]
[1729486975743,8.2672,170.85,170.78,2.9283]
[1729486975947,2.5687,170.91,170.81,2.9278]
[1729486976243,5.34,170.9,170.81,2.9278]
[1729486977956,2.9269,170.87,170.81,2.9278]
[1729486979654,22.9,170.9,170.72,1.3059]
[1729486979853,22.9,170.9,170.73,5.34]
[1729486980350,2.9274,170.84,170.78,2.9283]
[1729486980654,5.34,170.83,170.72,6.6459]
[1729486981148,2.5687,170.91,170.72,6.6459]
[1729486981149,5.34,170.84,170.72,6.6459]
[1729486981645,5.34,170.84,170.78,2.9283]
[1729486981852,5.34,170.84,170.72,6.6459]
[1729486982346,5.34,170.85,170.72,6.6459]
[1729486983048,5.34,170.85,170.79,2.9281]
[1729486984349,5.34,170.88,170.82,2.9276]
[1729486986649,2.9264,170.9,170.82,2.9276]
[1729486986953,5.34,170.89,170.85,2.9271]
[1729486987153,2.5687,170.91,170.82,2.93577059]
[1729486987447,2.5687,170.91,170.82,5.34]
[1729486987648,2.5687,170.91,170.82,8.22159968]
[1729486988646,2.5687,170.91,170.85,2.9271]
[1729486988846,63.24,171.01,170.82,8.22159968]
[1729486989045,9.2222,170.96,170.82,8.22159968]
[1729486989449,12.1476,170.96,170.82,8.22159968]
[1729486990455,12.1476,170.96,170.88,2.9267]
[1729486990957,5.34,170.95,170.88,2.9267]
[1729486991144,5.34,170.95,170.9,2.9263]
[1729486991347,5.34,170.95,170.83,2.6334]
[1729486991754,3.8822,170.96,170.9,2.9264]
[1729486991953,5.34,170.95,170.9,2.9264]
[1729486992550,5.34,170.95,170.89,2.9265]
[1729486993759,5.34,170.95,170.84,5.34]
[1729486993956,2.9258,170.94,170.84,5.34]
[1729486994658,2.9261,170.92,170.82,2.88159968]
[1729486994963,5.34,170.95,170.78,1.2671]
[1729486995259,2.9265,170.9,170.82,2.9276]
[1729486995452,5.34,170.89,170.82,2.9276]
[1729486995653,7.8377,170.88,170.82,2.9276]
[1729486995853,1.2653,170.87,170.82,2.9276]
[1729486996351,1.2653,170.87,170.77,6.6769]
[1729486996557,1.2653,170.87,170.8,2.9281]
[1729486997157,1.2653,170.87,170.81,2.9278]
[1729486997562,1.2653,170.87,170.77,5.34]
[1729486997862,4.1922,170.87,170.8,2.9279]
[1729486999558,1.2653,170.87,170.82,2.9277]
[1729487000359,1.2653,170.87,170.83,2.9276]
[1729487003160,1.2653,170.87,170.79,2.8652383]
[1729487003362,1.2653,170.87,170.77,1.46454219]
[1729487003564,1.2653,170.87,170.76,5.34]
[1729487003963,1.2653,170.87,170.83,2.9275]
[1729487004667,1.2653,170.87,170.83,2.9274]
[1729487005961,1.2653,170.87,170.8,2.94067937]
[1729487006181,1.2653,170.87,170.78,1.46454212]
[1729487006360,1.2653,170.87,170.76,5.34]
[1729487006664,1.2653,170.87,170.77,1.46454362]
[1729487006866,1.2653,170.87,170.76,5.34]
[1729487007166,1.2653,170.87,170.8,2.9279]
[1729487007366,1.2653,170.87,170.8,5.84710199]
[1729487007961,1.2653,170.87,170.8,2.91920199]
[1729487008166,1.2653,170.87,170.81,2.9279]
[1729487009068,1.2653,170.87,170.8,2.90368366]
[1729487009265,1.2653,170.87,170.82,2.9277]
[1729487009770,6.3853,170.87,170.82,2.9277]
[1729487014364,2.9273,170.85,170.78,4.39280229]
[1729487014560,6.3853,170.87,170.74,1.4647071]
[1729487014766,6.3853,170.87,170.73,7.7309]
[1729487014767,5.12,170.87,170.73,7.7309]
[1729487014963,5.12,170.87,170.74,1.46471082]
[1729487015159,5.12,170.87,170.75,1.46471082]
[1729487015369,5.12,170.87,170.73,7.7309]
[1729487015568,5.12,170.87,170.8,2.9279]
[1729487020368,8.0469,170.87,170.8,2.9279]
[1729487022166,8.0469,170.87,170.81,2.9279]
[1729487022365,1.2869,170.86,170.81,2.9279]
[1729487023177,3.8251,170.86,170.78,2.9284]
[1729487023572,2.9274,170.85,170.78,2.9284]
[1729487023780,3.8251,170.86,170.78,2.9284]
[1729487024175,2.9273,170.85,170.78,2.9284]
[1729487024782,2.9273,170.85,170.79,2.9282]
[1729487026976,6.7522,170.86,170.8,2.928]
[1729487027372,5.12,170.85,170.8,2.928]
[1729487027974,5.12,170.85,170.73,7.7309]
[1729487028182,5.12,170.85,170.8,2.928]
[1729487028376,5.12,170.85,170.8,2.98402371]
[1729487028581,5.12,170.85,170.73,7.7309]
[1729487030884,5.12,170.85,170.79,2.9281]
[1729487031087,5.12,170.85,170.8,2.92193511]
[1729487031979,5.12,170.85,170.78,2.9283]
[1729487034480,1.2869,170.86,170.73,7.7309]
[1729487034682,4.9,170.85,170.73,7.7309]
[1729487035985,1.2869,170.86,170.79,2.9281]
[1729487036183,1.2869,170.86,170.8,2.95766848]
[1729487036184,4.9,170.85,170.8,2.95766848]
[1729487036677,4.9,170.85,170.8,5.88566848]
[1729487036879,4.9,170.87,170.77,4.9]
[1729487037278,4.9,170.87,170.8,2.9281]
[1729487037479,4.9,170.87,170.81,2.98754392]
[1729487040190,4.9,170.87,170.81,5.91544392]
[1729487040486,4.9,170.87,170.81,2.9279]
[1729487040889,4.9,170.87,170.82,2.92071518]
[1729487043491,4.9,170.87,170.82,2.9277]
[1729487043786,4.9,170.87,170.82,5.80607871]
[1729487045992,2.9271,170.86,170.73,2.6109]
[1729487046191,2.9271,170.86,170.74,4.9]
[1729487046893,2.9271,170.86,170.79,2.9282]
[1729487047191,2.9271,170.86,170.79,5.89969411]
[1729487047390,7.8269,170.87,170.8,2.9279]
[1729487048294,4.9,170.87,170.73,7.5109]
[1729487048496,2.9274,170.85,170.73,7.5109]
[1729487049892,2.9274,170.85,170.78,2.9283]
[1729487050291,2.9272,170.86,170.73,7.5109]
[1729487051192,2.9272,170.86,170.78,2.9284]
[1729487051787,2.9273,170.85,170.78,2.9284]
[1729487052592,4.9,170.87,170.73,7.5109]
[1729487052798,2.9272,170.85,170.78,2.9283]
[1729487053997,2.9275,170.84,170.78,2.9283]
[1729487054293,4.9,170.83,170.78,2.9283]
[1729487058587,4.9,170.83,170.79,2.99140289]
[1729487058788,4.9,170.83,170.8,2.9279]
[1729487061900,2.9271,170.86,170.8,2.9279]
[1729487062205,7.8273,170.85,170.79,2.9282]
[1729487062596,4.9,170.85,170.73,2.6109]
[1729487062798,2.9275,170.84,170.76,2.9287]
[1729487062999,5.5242,170.84,170.73,2.6109]
[1729487063995,5.5241,170.84,170.77,2.9285]
[1729487064191,6.8251,170.84,170.77,2.9285]
[1729487065797,2.5967,170.84,170.73,2.6109]
[1729487065992,1.3238,170.84,170.73,2.6109]
[1729487066392,1.3238,170.84,170.78,2.9283]
[1729487068502,1.3238,170.84,170.73,2.6109]
[1729487068503,1.3238,170.84,170.76,2.9287]
[1729487068702,1.3238,170.84,170.73,2.6109]
[1729487068703,1.3238,170.84,170.77,1.46484195]
[1729487069001,1.3238,170.84,170.78,1.46484195]
[1729487069306,1.3238,170.84,170.78,2.9283]
[1729487069902,1.3238,170.84,170.79,2.9282]
[1729487072308,1.3238,170.84,170.73,2.6109]
[1729487072508,4.2513,170.84,170.78,2.9284]
[1729487075504,4.2513,170.84,170.77,2.9286]
[1729487075706,4.2513,170.84,170.78,1.46486165]
[1729487075910,2.9276,170.83,170.77,2.9286]
[1729487076111,2.9276,170.83,170.78,1.46488191]
[1729487076308,2.9276,170.83,170.77,2.9286]
[1729487076505,2.9276,170.83,170.78,1.46488349]
[1729487076715,2.9278,170.82,170.76,2.9288]
[1729487076911,4.7,170.81,170.77,1.46488498]
[1729487077113,4.7,170.81,170.69,4.7]
[1729487077413,2.9282,170.8,170.73,2.9292]
[1729487077621,2.9282,170.8,170.74,1.46505695]
[1729487077911,2.9282,170.8,170.73,2.9292]
[1729487079615,2.9283,170.79,170.73,2.9292]
[1729487083114,17.56,170.86,170.68,2.6135]
[1729487083115,17.56,171.07,170.74,63.26]
[1729487083423,115.90150339,171.24,170.82,17.54]
[1729487083713,2.921,171.22,170.99,2.9248]
[1729487083914,9.0554,171.23,171.0,6.70517549]
[1729487084115,3.8154,171.23,171.01,2.92771832]
[1729487084422,5.24,171.22,171.02,5.26776972]
[1729487084716,5.24,171.22,171.03,5.26776972]
[1729487084914,5.24,171.22,171.04,2.92771832]
[1729487085215,3.8154,171.23,171.0,5.24]
[1729487085216,5.24,171.21,171.05,6.70254283]
[1729487085414,5.24,171.21,171.06,6.70254283]
[1729487085711,5.24,171.21,171.07,6.70254283]
[1729487085915,5.24,171.21,171.07,5.24]
[1729487086414,5.24,171.21,171.13,0.29119515]
[1729487086713,5.24,171.21,171.14,6.7264254]
[1729487086917,5.24,171.21,171.15,6.7264254]
[1729487087113,5.24,171.21,171.16,6.7264254]
[1729487087316,5.24,171.21,171.17,6.7264254]
[1729487087518,5.24,171.21,171.18,6.7264254]
[1729487087714,3.8154,171.23,171.19,3.80189814]
[1729487087916,3.8154,171.23,171.08,2.9614914]
[1729487087917,5.22,171.2,171.16,0.29119515]
[1729487088217,5.22,171.2,171.08,2.9614914]
[1729487088218,5.22,171.2,171.19,0.29119515]
[1729487088412,5.22,171.21,171.19,7.01667759]
[1729487088615,5.22,171.21,171.2,6.72548244]
[1729487088818,5.22,171.21,171.2,7.01667759]
[1729487089617,5.22,171.21,171.18,2.9214]
[1729487089814,5.22,171.21,171.2,7.01380172]
[1729487090317,5.22,171.21,171.2,6.7245715]
[1729487090519,5.22,171.21,171.2,0.96099777]
[1729487090711,5.22,171.21,171.09,2.88376091]
[1729487090913,5.22,171.2,171.07,5.22]
[1729487091112,5.22,171.2,171.15,2.922]
[1729487091312,5.22,171.2,171.07,8.07161196]
[1729487091821,5.22,171.2,171.15,2.922]
[1729487092921,5.22,171.2,171.07,8.07161196]
[1729487093811,5.22,171.19,171.07,8.07161196]
[1729487095623,5.22,171.19,171.12,2.9224]
[1729487096620,5.22,171.19,171.1,0.28703571]
[1729487096820,5.22,171.19,171.13,2.9224]
[1729487097215,5.22,171.18,171.13,2.9224]
[1729487098716,5.22,171.18,171.14,2.92384288]
[1729487098921,2.9207,171.23,171.13,2.9224]
[1729487099218,5.22,171.22,171.14,2.92384571]
[1729487099426,5.22,171.22,171.15,2.92378385]
[1729487099618,5.22,171.22,171.14,2.9223]
[1729487099817,5.22,171.22,171.15,2.92378698]
[1729487100116,5.22,171.22,171.14,2.9223]
[1729487100628,5.22,171.22,171.15,2.9221]
[1729487100822,1.3372,171.3,171.16,2.33907988]
[1729487101018,18.8972,171.3,171.18,2.9215]
[1729487101223,5.22,171.29,171.13,0.28688163]
[1729487101421,2.9198,171.29,171.14,5.26267445]
[1729487101623,5.22,171.28,171.15,5.54955608]
[1729487101922,76.66176717,171.32,171.19,0.28688163]
[1729487102116,5.22,171.31,171.2,5.26267445]
[1729487102315,5.22,171.31,171.21,5.26267445]
[1729487102522,5.22,171.31,171.22,6.72402035]
[1729487102717,5.22,171.31,171.23,3.80031232]
[1729487102922,5.22,171.31,171.19,0.28688163]
[1729487102923,5.22,171.31,171.24,3.80031232]
[1729487103216,5.22,171.31,171.2,0.28688163]
[1729487103425,76.66176717,171.32,171.21,3.79946827]
[1729487103624,5.22,171.31,171.22,3.79946827]
[1729487103825,5.22,171.31,171.23,1.46133395]
[1729487104124,5.22,171.31,171.24,1.46133395]
[1729487104317,8.16968944,171.36,171.25,1.46133395]
[1729487104526,8.16968944,171.36,171.26,3.798958]
[1729487104829,8.16968944,171.36,171.22,5.22]
[1729487105027,8.16968944,171.36,171.3,2.9195]
[1729487105227,8.16968944,171.36,171.27,6.68101438]
[1729487105421,8.16968944,171.36,171.3,2.9195]
[1729487105623,6.16968944,171.36,171.28,2.80201438]
[1729487105822,6.16968944,171.36,171.29,3.79790699]
[1729487106129,2.13608944,171.36,171.34,2.9187]
[1729487106321,2.13608944,171.36,171.28,5.64462969]
[1729487106322,5.22,171.48,171.35,1.46101438]
[1729487106628,119.59764527,171.84,171.37,17.56]
[1729487106825,119.59764527,171.84,171.41,228.0]
[1729487106826,1.3285,171.76,171.41,228.0]
[1729487107123,1.3285,171.76,171.55,2.9152]
[1729487107124,2.9131,171.68,171.55,2.9152]
[1729487107331,1.3285,171.76,171.56,5.52]
[1729487107517,1.3285,171.76,171.43,3.20019478]
[1729487107518,1.3285,171.76,171.44,5.25123357]
[1729487107722,1.3285,171.76,171.45,12.22961812]
[1729487107918,1.3285,171.76,171.46,6.70961812]
[1729487108119,63.08,171.78,171.45,5.52]
[1729487108120,2.9123,171.73,171.55,2.9152]
[1729487108320,6.7398,171.8,171.56,6.97812534]
[1729487108529,6.7398,171.8,171.57,6.97791059]
[1729487108730,2.9116,171.77,171.65,2.9135]
[1729487108931,6.7398,171.8,171.55,2.33388159]
[1729487109225,7.92865823,171.81,171.63,2.9138]
[1729487109427,7.92865823,171.81,171.56,1.45791193]
[1729487109428,25.48865823,171.81,171.56,1.45791193]
[1729487109626,7.0574,171.8,171.56,2.45791193]
[1729487109828,2.912,171.75,171.62,2.914]
[1729487110035,5.82,171.74,171.55,5.82]
[1729487110220,1.2374,171.8,171.56,1.45765112]
[1729487110422,2.9128,171.7,171.56,2.915]
[1729487110731,1.3191,171.73,171.56,2.915]
[1729487110732,1.3191,171.73,171.56,2.96854763]
[1729487110925,1.3191,171.73,171.54,6.14]
[1729487111120,7.4591,171.73,171.54,6.14]
[1729487111529,7.4591,171.73,171.59,2.9146]
[1729487111830,7.4591,171.73,171.54,9.07007456]
[1729487112025,2.9125,171.72,171.58,2.9147]
[1729487112424,7.4591,171.73,171.57,2.92686847]
[1729487112627,7.4591,171.73,171.55,6.14]
[1729487112827,7.4591,171.73,171.55,9.12335087]
[1729487113835,2.9125,171.72,171.58,2.9147]
[1729487114728,6.14,171.71,171.58,2.9147]
[1729487114925,6.14,171.71,171.61,2.9142]
[1729487115128,6.14,171.71,171.55,9.12335087]
[1729487115633,6.14,171.71,171.51,6.14]
[1729487115830,0.6118,171.7,171.47,6.14]
[1729487116032,2.9139,171.64,171.47,6.14]
[1729487116232,7.455,171.63,171.43,144.27309688]
[1729487116538,2.9145,171.6,171.49,2.9162]
[1729487116728,6.14,171.62,171.44,6.14]
[1729487117031,6.14,171.62,171.43,138.13309688]
[1729487117236,2.9143,171.61,171.44,6.14]
[1729487117428,6.14,171.62,171.43,138.13309688]
[1729487117631,1.3092,171.6,171.44,6.14]
[1729487117831,1.3092,171.6,171.39,2.85750034]
[1729487118028,1.3092,171.6,171.4,6.14]
[1729487118233,1.3092,171.6,171.38,1.2759]
[1729487118435,1.3092,171.6,171.39,6.14]
[1729487118632,2.9147,171.59,171.45,2.9169]
[1729487118835,6.14,171.58,171.39,6.14]
[1729487119237,6.14,171.58,171.38,1.2759]
[1729487119428,6.14,171.58,171.38,7.4159]
[1729487120234,2.916,171.51,171.4,2.9178]
[1729487120435,2.916,171.51,171.38,7.4159]
[1729487120436,6.14,171.5,171.38,6.14]
[1729487120733,6.14,171.5,171.37,2.9516428]
[1729487121039,6.14,171.5,171.4,2.9178]
[1729487121241,1.241,171.59,171.39,2.85966676]
[1729487121537,2.9157,171.53,171.36,6.14]
[1729487121842,9.0558,171.52,171.41,2.9175]
[1729487122037,2.9158,171.52,171.41,2.9175]
[1729487122233,6.14,171.51,171.41,2.9175]
[1729487122441,6.14,171.5,171.41,2.9175]
[1729487123342,6.14,171.5,171.38,2.90022803]
[1729487123531,6.14,171.5,171.36,6.14]
[1729487123932,2.9164,171.49,171.37,2.9182]
[1729487124138,6.14,171.5,171.38,2.97230332]
[1729487124332,6.14,171.5,171.36,6.14]
[1729487124931,6.14,171.5,171.29,4.27244753]
[1729487125134,6.14,171.5,171.3,7.21256862]
[1729487125440,1.241,171.59,171.31,1.07256862]
[1729487125637,6.14,171.58,171.31,1.07256862]
[1729487125844,2.9153,171.56,171.31,1.07256862]
[1729487126142,1.241,171.59,171.32,17.56]
[1729487126342,9.0548,171.58,171.47,2.9165]
[1729487126645,1.241,171.59,171.46,2.89789361]
[1729487126839,6.14,171.58,171.48,2.9164]
[1729487127037,1.3092,171.6,171.44,6.14]
[1729487127439,6.14,171.62,171.54,2.9153]
[1729487127741,6.14,171.62,171.5,6.14]
[1729487127942,6.14,171.62,171.51,6.14]
[1729487128244,7.455,171.63,171.51,6.14]
[1729487129039,7.455,171.63,171.55,2.9153]
[1729487129437,7.455,171.63,171.45,1.335]
[1729487129634,7.455,171.63,171.5,2.9161]
[1729487129840,7.455,171.63,171.45,7.475]
[1729487130134,2.9143,171.62,171.45,7.475]
[1729487130742,2.9143,171.62,171.53,2.9156]
[1729487132243,1.315,171.63,171.45,7.475]
[1729487132445,6.14,171.62,171.54,2.9153]
[1729487133650,6.14,171.62,171.53,2.97890961]
[1729487133845,6.14,171.62,171.55,2.9152]
[1729487134249,6.14,171.62,171.53,2.93457886]
[1729487134543,6.14,171.62,171.56,2.9151]
[1729487135554,6.14,171.62,171.5,6.14]
[1729487135755,6.14,171.62,171.45,1.335]
[1729487136147,2.9146,171.6,171.46,6.14]
[1729487136756,2.9148,171.58,171.5,2.916]
[1729487137253,2.9154,171.55,171.46,2.9168]
[1729487137558,6.14,171.57,171.44,2.86112645]
[1729487137761,1.2099,171.56,171.42,2.89657208]
[1729487137963,2.9158,171.52,171.44,2.9172]